[Event "Titled Tuesday Blitz January 17 Early 2023"]
[White "Koellner, Ruben Gideon"]
[Black "Mitrabha, Guha"]
[WhiteFideId "12993093"]
[BlackFideId "5057000"]
[WhiteElo "2426"]
[BlackElo "2507"]
[Result "0-1"]
[Round "05"]
[TimeControl "180+2"]
[Date "2023.01.17"]
[WhiteClock "0:00:05"]
[BlackClock "0:00:07"]

1. d4 {[%clk 0:02:40]}  Nf6 {[%clk 0:02:59]} 2. Nf3 {[%clk 0:02:34]}  c5 {[%clk 0:02:59]} 3. e3 {[%clk 0:02:34]}  d5 {[%clk 0:02:57]} 4. Nbd2 {[%clk 0:02:35]}  cxd4 {[%clk 0:02:56]} 5. exd4 {[%clk 0:02:35]}  Nc6 {[%clk 0:02:56]} 6. c3 {[%clk 0:02:35]}  Bf5 {[%clk 0:02:55]} 7. Nh4 {[%clk 0:02:35]}  Bg4 {[%clk 0:02:48]} 8. Qb3 {[%clk 0:02:35]}  Qc7 {[%clk 0:02:45]} 9. h3 {[%clk 0:02:34]}  Bd7 {[%clk 0:02:45]} 10. Bd3 {[%clk 0:02:33]}  e5 {[%clk 0:02:44]} 11. dxe5 {[%clk 0:02:30]}  Nxe5 {[%clk 0:02:44]} 12. Be2 {[%clk 0:02:29]}  Bd6 {[%clk 0:02:37]} 13. Nhf3 {[%clk 0:02:26]}  Nc6 {[%clk 0:02:36]} 14. O-O {[%clk 0:02:23]}  O-O {[%clk 0:02:36]} 15. Bd3 {[%clk 0:02:22]}  Rfe8 {[%clk 0:02:34]} 16. Qd1 {[%clk 0:02:21]}  Ne4 {[%clk 0:02:26]} 17. Nb3 {[%clk 0:02:08]}  a6 {[%clk 0:02:11]} 18. Be3 {[%clk 0:02:06]}  Re6 {[%clk 0:02:06]} 19. Nbd4 {[%clk 0:01:59]}  Rg6 {[%clk 0:02:05]} 20. Nh4 {[%clk 0:01:58]}  Rf6 {[%clk 0:02:03]} 21. Qh5 {[%clk 0:01:53]}  Ne5 {[%clk 0:01:57]} 22. Bc2 {[%clk 0:01:35]}  Re8 {[%clk 0:01:44]} 23. Nhf5 {[%clk 0:01:24]}  Bf8 {[%clk 0:01:39]} 24. Rad1 {[%clk 0:01:13]}  Nc4 {[%clk 0:01:38]} 25. Bc1 {[%clk 0:01:05]}  Qe5 {[%clk 0:01:33]} 26. g4 {[%clk 0:00:31]}  Kh8 {[%clk 0:01:20]} 27. Qh4 {[%clk 0:00:11]}  g6 {[%clk 0:01:09]} 28. f4 {[%clk 0:00:07]}  Qc7 {[%clk 0:00:07]} 29. Bxe4 {[%clk 0:00:07]}  Qd8 {[%clk 0:00:04]} 30. Bxd5 {[%clk 0:00:02]}  Nb6 {[%clk 0:00:04]} 31. Ne3 {[%clk 0:00:01]}  Rxe3 {[%clk 0:00:04]} 32. Bxe3 {[%clk 0:00:01]}  Nxd5 {[%clk 0:00:04]} 33. Bc1 {[%clk 0:00:02]}  Bg7 {[%clk 0:00:05]} 34. f5 {[%clk 0:00:02]}  Qb6 {[%clk 0:00:04]} 35. Bg5 {[%clk 0:00:02]}  Rd6 {[%clk 0:00:04]} 36. Qf2 {[%clk 0:00:02]}  h6 {[%clk 0:00:02]} 37. Bc1 {[%clk 0:00:02]}  g5 {[%clk 0:00:02]} 38. Nf3 {[%clk 0:00:01]}  Qc7 {[%clk 0:00:02]} 39. Rfe1 {[%clk 0:00:02]}  Bf8 {[%clk 0:00:02]} 40. Re2 {[%clk 0:00:02]}  Rc6 {[%clk 0:00:03]} 41. Nd4 {[%clk 0:00:03]}  Rd6 {[%clk 0:00:02]} 42. Rde1 {[%clk 0:00:03]}  Kg8 {[%clk 0:00:03]} 43. Re4 {[%clk 0:00:03]}  Nf6 {[%clk 0:00:04]} 44. Re5 {[%clk 0:00:03]}  Rb6 {[%clk 0:00:04]} 45. h4 {[%clk 0:00:03]}  Bd6 {[%clk 0:00:04]} 46. R5e3 {[%clk 0:00:03]}  Nxg4 {[%clk 0:00:05]} 47. Qg2 {[%clk 0:00:03]}  Nxe3 {[%clk 0:00:05]} 48. Bxe3 {[%clk 0:00:04]}  f6 {[%clk 0:00:06]} 49. hxg5 {[%clk 0:00:04]}  hxg5 {[%clk 0:00:06]} 50. Bxg5 {[%clk 0:00:04]}  fxg5 {[%clk 0:00:06]} 51. Qxg5+ {[%clk 0:00:05]}  Kf8 {[%clk 0:00:06]} 52. Ne6+ {[%clk 0:00:05]}  Bxe6 {[%clk 0:00:05]} 53. fxe6 {[%clk 0:00:05]}  Bc5+ {[%clk 0:00:02]} 54. Kg2 {[%clk 0:00:05]}  Ke8 {[%clk 0:00:03]} 55. Qg8+ {[%clk 0:00:05]}  Ke7 {[%clk 0:00:03]} 56. Rd1 {[%clk 0:00:05]}  Rxb2+ {[%clk 0:00:03]} 57. Kh3 {[%clk 0:00:04]}  Qh2+ {[%clk 0:00:03]} 58. Kg4 {[%clk 0:00:05]}  Rg2+ {[%clk 0:00:03]} 59. Kf5 {[%clk 0:00:05]}  Rxg8 {[%clk 0:00:04]} 60. Rd7+ {[%clk 0:00:05]}  Ke8 {[%clk 0:00:05]} 61. Rxb7 {[%clk 0:00:05]}  Qf2+ {[%clk 0:00:05]} 62. Ke5 {[%clk 0:00:06]}  Rg5+ {[%clk 0:00:06]} 63. Ke4 {[%clk 0:00:05]}  Qe3# {[%clk 0:00:07]} 0-1


[Site "https://www.chess.com"]

[Event "Titled Tuesday Blitz January 17 Early 2023"]
[White "Bharath Subramaniyam H"]
[Black "Volkov, Maksim"]
[WhiteFideId "46634827"]
[BlackFideId "54123070"]
[WhiteElo "2517"]
[BlackElo "2258"]
[Result "1-0"]
[Round "05"]
[TimeControl "180+2"]
[Date "2023.01.17"]
[WhiteClock "0:02:01"]
[BlackClock "0:01:19"]

1. e4 {[%clk 0:02:50]}  c5 {[%clk 0:02:59]} 2. Nf3 {[%clk 0:02:50]}  d6 {[%clk 0:02:59]} 3. Bb5+ {[%clk 0:02:47]}  Nd7 {[%clk 0:02:59]} 4. d4 {[%clk 0:02:46]}  cxd4 {[%clk 0:02:58]} 5. Nxd4 {[%clk 0:02:47]}  a6 {[%clk 0:02:57]} 6. Bd3 {[%clk 0:02:46]}  Ngf6 {[%clk 0:02:57]} 7. O-O {[%clk 0:02:46]}  e5 {[%clk 0:02:57]} 8. Nf5 {[%clk 0:02:44]}  Nc5 {[%clk 0:02:55]} 9. Nc3 {[%clk 0:02:43]}  Bxf5 {[%clk 0:02:36]} 10. exf5 {[%clk 0:02:41]}  d5 {[%clk 0:02:28]} 11. Bg5 {[%clk 0:02:39]}  Be7 {[%clk 0:02:23]} 12. Bxf6 {[%clk 0:02:16]}  Bxf6 {[%clk 0:02:22]} 13. Nxd5 {[%clk 0:02:17]}  e4 {[%clk 0:02:22]} 14. Bxe4 {[%clk 0:02:09]}  Nxe4 {[%clk 0:02:21]} 15. Re1 {[%clk 0:02:09]}  O-O {[%clk 0:02:18]} 16. Rxe4 {[%clk 0:02:10]}  Bxb2 {[%clk 0:02:11]} 17. Rb1 {[%clk 0:02:09]}  Ba3 {[%clk 0:02:12]} 18. f6 {[%clk 0:02:02]}  Re8 {[%clk 0:01:18]} 19. Rxe8+ {[%clk 0:02:01]}  Qxe8 {[%clk 0:01:19]} 20. Nc7 {[%clk 0:02:01]} 1-0


[Site "https://www.chess.com"]

[Event "Titled Tuesday Blitz January 17 Early 2023"]
[White "Maximov, Dmitry"]
[Black "Weetik, Vjacheslav"]
[WhiteFideId "14105659"]
[BlackFideId "4153472"]
[WhiteElo "2497"]
[BlackElo "2423"]
[Result "1/2-1/2"]
[Round "05"]
[TimeControl "180+2"]
[Date "2023.01.17"]
[WhiteClock "0:00:06"]
[BlackClock "0:00:09"]

1. e4 {[%clk 0:03:00]}  c6 {[%clk 0:02:59]} 2. Nc3 {[%clk 0:02:59]}  d5 {[%clk 0:03:00]} 3. Qe2 {[%clk 0:02:59]}  dxe4 {[%clk 0:02:47]} 4. Qxe4 {[%clk 0:02:54]}  Nf6 {[%clk 0:02:47]} 5. Qh4 {[%clk 0:02:54]}  Bf5 {[%clk 0:02:42]} 6. d3 {[%clk 0:02:48]}  e6 {[%clk 0:02:38]} 7. Nf3 {[%clk 0:02:45]}  c5 {[%clk 0:02:19]} 8. Be2 {[%clk 0:02:32]}  Nc6 {[%clk 0:02:19]} 9. O-O {[%clk 0:02:32]}  Be7 {[%clk 0:02:14]} 10. Qf4 {[%clk 0:01:58]}  h6 {[%clk 0:02:00]} 11. Re1 {[%clk 0:01:54]}  O-O {[%clk 0:01:57]} 12. Bf1 {[%clk 0:01:53]}  Rc8 {[%clk 0:01:56]} 13. h3 {[%clk 0:01:53]}  a6 {[%clk 0:01:43]} 14. Ne4 {[%clk 0:01:42]}  Nd4 {[%clk 0:01:33]} 15. Nxd4 {[%clk 0:01:23]}  cxd4 {[%clk 0:01:32]} 16. Nxf6+ {[%clk 0:01:21]}  Bxf6 {[%clk 0:01:32]} 17. Qd2 {[%clk 0:01:20]}  Rc5 {[%clk 0:01:09]} 18. Qd1 {[%clk 0:01:14]}  Qc7 {[%clk 0:01:08]} 19. Re2 {[%clk 0:01:13]}  Rc8 {[%clk 0:01:08]} 20. g4 {[%clk 0:00:59]}  Bg6 {[%clk 0:01:05]} 21. Bg2 {[%clk 0:01:00]}  b5 {[%clk 0:00:46]} 22. a4 {[%clk 0:00:31]}  b4 {[%clk 0:00:46]} 23. Bd2 {[%clk 0:00:21]}  a5 {[%clk 0:00:47]} 24. f4 {[%clk 0:00:15]}  Rxc2 {[%clk 0:00:43]} 25. f5 {[%clk 0:00:13]}  exf5 {[%clk 0:00:43]} 26. Bf4 {[%clk 0:00:13]}  Qxf4 {[%clk 0:00:35]} 27. Rxc2 {[%clk 0:00:13]}  Rxc2 {[%clk 0:00:35]} 28. Qxc2 {[%clk 0:00:13]}  fxg4 {[%clk 0:00:35]} 29. Qc8+ {[%clk 0:00:10]}  Kh7 {[%clk 0:00:35]} 30. Qxg4 {[%clk 0:00:11]}  Qxg4 {[%clk 0:00:25]} 31. hxg4 {[%clk 0:00:10]}  Bxd3 {[%clk 0:00:26]} 32. Rd1 {[%clk 0:00:09]}  Bc2 {[%clk 0:00:25]} 33. Rd2 {[%clk 0:00:09]}  b3 {[%clk 0:00:21]} 34. Rxc2 {[%clk 0:00:09]}  bxc2 {[%clk 0:00:20]} 35. Be4+ {[%clk 0:00:10]}  g6 {[%clk 0:00:20]} 36. Bxc2 {[%clk 0:00:10]}  Bg5 {[%clk 0:00:20]} 37. Kg2 {[%clk 0:00:10]}  Bc1 {[%clk 0:00:18]} 38. b3 {[%clk 0:00:10]}  Kg7 {[%clk 0:00:19]} 39. Kf3 {[%clk 0:00:11]}  Bb2 {[%clk 0:00:16]} 40. Bd3 {[%clk 0:00:11]}  Kf6 {[%clk 0:00:16]} 41. Bc4 {[%clk 0:00:11]}  Bc3 {[%clk 0:00:12]} 42. Ke4 {[%clk 0:00:11]}  Kg5 {[%clk 0:00:10]} 43. Kf3 {[%clk 0:00:08]}  f5 {[%clk 0:00:08]} 44. gxf5 {[%clk 0:00:07]}  Kxf5 {[%clk 0:00:08]} 45. Bd3+ {[%clk 0:00:08]}  Kg5 {[%clk 0:00:09]} 46. Kg3 {[%clk 0:00:08]}  h5 {[%clk 0:00:09]} 47. Kf3 {[%clk 0:00:09]}  Kf6 {[%clk 0:00:07]} 48. Kg3 {[%clk 0:00:07]}  g5 {[%clk 0:00:04]} 49. Be2 {[%clk 0:00:07]}  Kg6 {[%clk 0:00:04]} 50. Bd3+ {[%clk 0:00:07]}  Kh6 {[%clk 0:00:04]} 51. Kf3 {[%clk 0:00:07]}  g4+ {[%clk 0:00:04]} 52. Kf4 {[%clk 0:00:08]}  Bd2+ {[%clk 0:00:05]} 53. Kf5 {[%clk 0:00:08]}  Bb4 {[%clk 0:00:03]} 54. Ke5 {[%clk 0:00:07]}  Kg5 {[%clk 0:00:03]} 55. Kxd4 {[%clk 0:00:07]}  h4 {[%clk 0:00:04]} 56. Ke3 {[%clk 0:00:06]}  Bc5+ {[%clk 0:00:04]} 57. Ke2 {[%clk 0:00:06]}  Kf4 {[%clk 0:00:04]} 58. Kf1 {[%clk 0:00:05]}  g3 {[%clk 0:00:04]} 59. Kg2 {[%clk 0:00:05]}  Be7 {[%clk 0:00:03]} 60. Be2 {[%clk 0:00:04]}  Ke3 {[%clk 0:00:03]} 61. Bc4 {[%clk 0:00:04]}  Kd4 {[%clk 0:00:04]} 62. Be6 {[%clk 0:00:04]}  Bd8 {[%clk 0:00:03]} 63. Kf3 {[%clk 0:00:04]}  Ke5 {[%clk 0:00:03]} 64. Bh3 {[%clk 0:00:04]}  Kd4 {[%clk 0:00:03]} 65. Kg2 {[%clk 0:00:05]}  Ke3 {[%clk 0:00:04]} 66. Be6 {[%clk 0:00:05]}  Kf4 {[%clk 0:00:04]} 67. Bh3 {[%clk 0:00:05]}  Bc7 {[%clk 0:00:04]} 68. Be6 {[%clk 0:00:05]}  Bd6 {[%clk 0:00:05]} 69. Bh3 {[%clk 0:00:05]}  Ke4 {[%clk 0:00:05]} 70. Be6 {[%clk 0:00:05]}  Kd4 {[%clk 0:00:06]} 71. Bc4 {[%clk 0:00:05]}  Be7 {[%clk 0:00:06]} 72. Be6 {[%clk 0:00:05]}  Kc5 {[%clk 0:00:07]} 73. Bc4 {[%clk 0:00:05]}  Bf6 {[%clk 0:00:06]} 74. Be6 {[%clk 0:00:05]}  Kb4 {[%clk 0:00:06]} 75. Bc4 {[%clk 0:00:05]}  Kc3 {[%clk 0:00:07]} 76. Be6 {[%clk 0:00:05]}  Kd2 {[%clk 0:00:08]} 77. Bc4 {[%clk 0:00:05]}  Ke3 {[%clk 0:00:09]} 78. Be6 {[%clk 0:00:06]}  Kf4 {[%clk 0:00:09]} 79. Bh3 {[%clk 0:00:06]} 1/2-1/2


[Site "https://www.chess.com"]

[Event "Titled Tuesday Blitz January 17 Early 2023"]
[White "Shuvalova, Polina"]
[Black "Paichadze, Luka"]
[WhiteFideId "24171760"]
[BlackFideId "13602934"]
[WhiteElo "2484"]
[BlackElo "2515"]
[Result "0-1"]
[Round "05"]
[TimeControl "180+2"]
[Date "2023.01.17"]
[WhiteClock "0:00:01"]
[BlackClock "0:00:51"]

1. d4 {[%clk 0:03:00]}  Nf6 {[%clk 0:02:57]} 2. Nf3 {[%clk 0:03:00]}  e6 {[%clk 0:02:57]} 3. Bg5 {[%clk 0:02:58]}  c5 {[%clk 0:02:51]} 4. d5 {[%clk 0:02:51]}  Qb6 {[%clk 0:02:49]} 5. Bxf6 {[%clk 0:02:47]}  gxf6 {[%clk 0:02:50]} 6. e4 {[%clk 0:02:11]}  Qxb2 {[%clk 0:02:46]} 7. Nbd2 {[%clk 0:02:11]}  Qc3 {[%clk 0:02:29]} 8. Bd3 {[%clk 0:02:02]}  Na6 {[%clk 0:02:19]} 9. Rb1 {[%clk 0:01:59]}  Nb4 {[%clk 0:02:17]} 10. Rb3 {[%clk 0:01:52]}  Nxd3+ {[%clk 0:02:17]} 11. cxd3 {[%clk 0:01:51]}  Qa5 {[%clk 0:02:18]} 12. O-O {[%clk 0:01:49]}  b5 {[%clk 0:02:18]} 13. Rb2 {[%clk 0:01:12]}  Bd6 {[%clk 0:02:14]} 14. Nh4 {[%clk 0:01:09]}  Bb7 {[%clk 0:02:03]} 15. Qf3 {[%clk 0:01:03]}  Be5 {[%clk 0:01:58]} 16. Rc2 {[%clk 0:01:02]}  Qb6 {[%clk 0:01:53]} 17. Nb3 {[%clk 0:00:55]}  d6 {[%clk 0:01:24]} 18. Qe3 {[%clk 0:00:36]}  c4 {[%clk 0:01:12]} 19. Qxb6 {[%clk 0:00:27]}  axb6 {[%clk 0:01:13]} 20. dxc4 {[%clk 0:00:28]}  bxc4 {[%clk 0:01:13]} 21. Rxc4 {[%clk 0:00:22]}  exd5 {[%clk 0:01:12]} 22. exd5 {[%clk 0:00:21]}  Bxd5 {[%clk 0:01:13]} 23. Rb4 {[%clk 0:00:21]}  Rxa2 {[%clk 0:01:10]} 24. Rxb6 {[%clk 0:00:10]}  Kd7 {[%clk 0:01:10]} 25. Nf5 {[%clk 0:00:09]}  Rb2 {[%clk 0:01:06]} 26. Rb5 {[%clk 0:00:04]}  Bxb3 {[%clk 0:01:03]} 27. Ra1 {[%clk 0:00:01]}  Rc8 {[%clk 0:00:57]} 28. g3 {[%clk 0:00:01]}  Be6 {[%clk 0:00:51]} 0-1


[Site "https://www.chess.com"]

[Event "Titled Tuesday Blitz January 17 Early 2023"]
[White "Aloma Vidal, Robert"]
[Black "Galchenko, Matvey"]
[WhiteFideId "2260409"]
[BlackFideId "24175480"]
[WhiteElo "2442"]
[BlackElo "2438"]
[Result "0-1"]
[Round "05"]
[TimeControl "180+2"]
[Date "2023.01.17"]
[WhiteClock "0:00:47"]
[BlackClock "0:01:17"]

1. e4 {[%clk 0:03:00]}  e6 {[%clk 0:02:59]} 2. d4 {[%clk 0:03:00]}  d5 {[%clk 0:03:00]} 3. e5 {[%clk 0:03:00]}  c5 {[%clk 0:03:00]} 4. c3 {[%clk 0:03:01]}  Qb6 {[%clk 0:03:01]} 5. Nf3 {[%clk 0:03:01]}  Nc6 {[%clk 0:03:01]} 6. a3 {[%clk 0:02:59]}  Nh6 {[%clk 0:03:00]} 7. b4 {[%clk 0:02:50]}  cxd4 {[%clk 0:03:00]} 8. cxd4 {[%clk 0:02:50]}  Nf5 {[%clk 0:03:00]} 9. Be3 {[%clk 0:02:47]}  f6 {[%clk 0:03:00]} 10. exf6 {[%clk 0:02:45]}  gxf6 {[%clk 0:03:01]} 11. Bd3 {[%clk 0:02:42]}  Nxe3 {[%clk 0:03:01]} 12. fxe3 {[%clk 0:02:43]}  Bh6 {[%clk 0:03:01]} 13. Qe2 {[%clk 0:02:37]}  Bd7 {[%clk 0:03:01]} 14. Nc3 {[%clk 0:02:34]}  Ne7 {[%clk 0:03:01]} 15. O-O {[%clk 0:02:27]}  O-O-O {[%clk 0:03:01]} 16. a4 {[%clk 0:02:19]}  Kb8 {[%clk 0:03:01]} 17. a5 {[%clk 0:02:12]}  Qd6 {[%clk 0:03:01]} 18. Bb5 {[%clk 0:01:51]}  Nf5 {[%clk 0:02:11]} 19. Bxd7 {[%clk 0:01:51]}  Qxd7 {[%clk 0:01:45]} 20. Nd1 {[%clk 0:01:43]}  Rc8 {[%clk 0:01:42]} 21. Kh1 {[%clk 0:01:32]}  Rc4 {[%clk 0:01:38]} 22. e4 {[%clk 0:01:18]}  Nxd4 {[%clk 0:01:28]} 23. Nxd4 {[%clk 0:01:13]}  Rxd4 {[%clk 0:01:29]} 24. Rxf6 {[%clk 0:01:00]}  Rxe4 {[%clk 0:01:18]} 25. Qf2 {[%clk 0:00:51]}  Bg7 {[%clk 0:01:18]} 26. Rf7 {[%clk 0:00:47]}  Qxf7 {[%clk 0:01:17]} 27. Qxf7 {[%clk 0:00:47]}  Re1+ {[%clk 0:01:17]} 0-1


[Site "https://www.chess.com"]

[Event "Titled Tuesday Blitz January 17 Early 2023"]
[White "Demin, Vladimir"]
[Black "Movsesian, Sergei"]
[WhiteFideId "4167457"]
[BlackFideId "310204"]
[WhiteElo "2430"]
[BlackElo "2610"]
[Result "1-0"]
[Round "05"]
[TimeControl "180+2"]
[Date "2023.01.17"]
[WhiteClock "0:00:02"]
[BlackClock "0:00:15"]

1. d4 {[%clk 0:03:00]}  Nf6 {[%clk 0:02:58]} 2. Nc3 {[%clk 0:03:01]}  d5 {[%clk 0:02:57]} 3. Bf4 {[%clk 0:03:01]}  a6 {[%clk 0:02:57]} 4. e3 {[%clk 0:03:02]}  c5 {[%clk 0:02:56]} 5. dxc5 {[%clk 0:03:02]}  e6 {[%clk 0:02:55]} 6. Na4 {[%clk 0:03:02]}  Nbd7 {[%clk 0:02:50]} 7. b4 {[%clk 0:02:41]}  e5 {[%clk 0:02:47]} 8. Bg5 {[%clk 0:02:40]}  h6 {[%clk 0:02:47]} 9. Bxf6 {[%clk 0:02:37]}  Nxf6 {[%clk 0:02:44]} 10. Nb6 {[%clk 0:02:36]}  Rb8 {[%clk 0:02:43]} 11. Nf3 {[%clk 0:02:33]}  e4 {[%clk 0:02:21]} 12. Nd4 {[%clk 0:02:32]}  Bg4 {[%clk 0:02:17]} 13. Be2 {[%clk 0:02:27]}  Bxe2 {[%clk 0:02:17]} 14. Qxe2 {[%clk 0:02:28]}  Be7 {[%clk 0:02:17]} 15. O-O {[%clk 0:02:26]}  O-O {[%clk 0:02:16]} 16. c4 {[%clk 0:02:26]}  dxc4 {[%clk 0:02:16]} 17. Qxc4 {[%clk 0:02:27]}  Qc7 {[%clk 0:02:14]} 18. h3 {[%clk 0:02:16]}  Rfd8 {[%clk 0:02:13]} 19. Rad1 {[%clk 0:02:10]}  Qe5 {[%clk 0:02:12]} 20. Ne2 {[%clk 0:01:39]}  Qh5 {[%clk 0:01:53]} 21. Rd4 {[%clk 0:01:23]}  Rxd4 {[%clk 0:01:50]} 22. Nxd4 {[%clk 0:01:21]}  Bf8 {[%clk 0:01:39]} 23. Ne2 {[%clk 0:01:15]}  Rd8 {[%clk 0:01:38]} 24. Nf4 {[%clk 0:01:15]}  Qe5 {[%clk 0:01:32]} 25. a3 {[%clk 0:01:00]}  Qb2 {[%clk 0:01:29]} 26. Nbd5 {[%clk 0:00:53]}  Nxd5 {[%clk 0:01:20]} 27. Nxd5 {[%clk 0:00:54]}  Qxa3 {[%clk 0:01:19]} 28. Qxe4 {[%clk 0:00:49]}  a5 {[%clk 0:01:13]} 29. Ne7+ {[%clk 0:00:47]}  Kh8 {[%clk 0:01:05]} 30. c6 {[%clk 0:00:46]}  bxc6 {[%clk 0:00:36]} 31. Nxc6 {[%clk 0:00:47]}  Rc8 {[%clk 0:00:36]} 32. bxa5 {[%clk 0:00:44]}  Qc3 {[%clk 0:00:36]} 33. Ne5 {[%clk 0:00:37]}  Kg8 {[%clk 0:00:32]} 34. Qd5 {[%clk 0:00:29]}  Qc7 {[%clk 0:00:30]} 35. a6 {[%clk 0:00:27]}  Rd8 {[%clk 0:00:30]} 36. Qb5 {[%clk 0:00:20]}  Rb8 {[%clk 0:00:27]} 37. Qd5 {[%clk 0:00:14]}  Rd8 {[%clk 0:00:27]} 38. Qe4 {[%clk 0:00:07]}  Re8 {[%clk 0:00:27]} 39. f4 {[%clk 0:00:07]}  Qa7 {[%clk 0:00:26]} 40. Kh2 {[%clk 0:00:03]}  Qxa6 {[%clk 0:00:24]} 41. Qd5 {[%clk 0:00:04]}  Re6 {[%clk 0:00:20]} 42. Rf3 {[%clk 0:00:04]}  Qe2 {[%clk 0:00:18]} 43. Rg3 {[%clk 0:00:03]}  Qf2 {[%clk 0:00:17]} 44. Ng4 {[%clk 0:00:03]}  Rg6 {[%clk 0:00:15]} 45. Nxf2 {[%clk 0:00:02]} 1-0


[Site "https://www.chess.com"]

[Event "Titled Tuesday Blitz January 17 Early 2023"]
[White "Harsh Suresh"]
[Black "Szpar, Milosz"]
[WhiteFideId "45018464"]
[BlackFideId "1184989"]
[WhiteElo "2298"]
[BlackElo "2447"]
[Result "1-0"]
[Round "05"]
[TimeControl "180+2"]
[Date "2023.01.17"]
[WhiteClock "0:00:46"]
[BlackClock "0:01:18"]

1. b3 {[%clk 0:02:59]}  e5 {[%clk 0:02:59]} 2. Bb2 {[%clk 0:02:59]}  Nc6 {[%clk 0:02:59]} 3. c4 {[%clk 0:02:59]}  g6 {[%clk 0:02:57]} 4. g3 {[%clk 0:02:53]}  Bg7 {[%clk 0:02:57]} 5. Bg2 {[%clk 0:02:54]}  d6 {[%clk 0:02:54]} 6. e3 {[%clk 0:02:54]}  Nge7 {[%clk 0:02:36]} 7. Ne2 {[%clk 0:02:52]}  O-O {[%clk 0:02:36]} 8. O-O {[%clk 0:02:52]}  Bg4 {[%clk 0:02:34]} 9. h3 {[%clk 0:02:50]}  Be6 {[%clk 0:02:34]} 10. d4 {[%clk 0:02:49]}  d5 {[%clk 0:02:11]} 11. cxd5 {[%clk 0:02:36]}  Nxd5 {[%clk 0:01:55]} 12. e4 {[%clk 0:02:24]}  exd4 {[%clk 0:01:55]} 13. exd5 {[%clk 0:02:24]}  Bxd5 {[%clk 0:01:56]} 14. Bxd5 {[%clk 0:02:18]}  Qxd5 {[%clk 0:01:56]} 15. Nf4 {[%clk 0:02:18]}  Qd7 {[%clk 0:01:54]} 16. Nd2 {[%clk 0:02:12]}  g5 {[%clk 0:01:54]} 17. Nh5 {[%clk 0:02:12]}  Qxh3 {[%clk 0:01:53]} 18. Nxg7 {[%clk 0:02:11]}  Kxg7 {[%clk 0:01:54]} 19. Nf3 {[%clk 0:02:12]}  Rad8 {[%clk 0:01:52]} 20. Nxg5 {[%clk 0:01:53]}  Qf5 {[%clk 0:01:49]} 21. Nf3 {[%clk 0:01:53]}  Qd5 {[%clk 0:01:45]} 22. Rc1 {[%clk 0:01:50]}  Rd7 {[%clk 0:01:38]} 23. Rc4 {[%clk 0:01:40]}  Rfd8 {[%clk 0:01:38]} 24. Nxd4 {[%clk 0:01:11]}  Kf8 {[%clk 0:01:31]} 25. Ba3+ {[%clk 0:01:00]}  Ne7 {[%clk 0:01:29]} 26. Qg4 {[%clk 0:00:48]}  Qe5 {[%clk 0:01:28]} 27. Nf5 {[%clk 0:00:47]}  Rd6 {[%clk 0:01:18]} 28. Bxd6 {[%clk 0:00:46]}  cxd6 {[%clk 0:01:18]} 29. Nxe7 {[%clk 0:00:46]}  Qxe7 {[%clk 0:01:18]} 1-0


[Site "https://www.chess.com"]

[Event "Titled Tuesday Blitz January 17 Early 2023"]
[White "Skatchkov, Valery"]
[Black "Seo, Jung Min"]
[WhiteFideId "24195812"]
[BlackFideId "1734687"]
[WhiteElo "2167"]
[BlackElo "2494"]
[Result "0-1"]
[Round "05"]
[TimeControl "180+2"]
[Date "2023.01.17"]
[WhiteClock "0:00:01"]
[BlackClock "0:01:24"]

1. d4 {[%clk 0:02:46]}  d6 {[%clk 0:02:59]} 2. e4 {[%clk 0:02:46]}  Nf6 {[%clk 0:03:00]} 3. Nf3 {[%clk 0:02:46]}  Nxe4 {[%clk 0:02:59]} 4. Bd3 {[%clk 0:02:46]}  Nf6 {[%clk 0:02:58]} 5. O-O {[%clk 0:02:47]}  g6 {[%clk 0:02:58]} 6. Bg5 {[%clk 0:02:47]}  Bg7 {[%clk 0:02:59]} 7. Qd2 {[%clk 0:02:47]}  O-O {[%clk 0:02:59]} 8. Bh6 {[%clk 0:02:47]}  Nc6 {[%clk 0:02:57]} 9. Nc3 {[%clk 0:02:46]}  Bg4 {[%clk 0:02:49]} 10. Bxg7 {[%clk 0:02:44]}  Kxg7 {[%clk 0:02:49]} 11. Be2 {[%clk 0:02:00]}  e6 {[%clk 0:02:39]} 12. h3 {[%clk 0:01:58]}  Bxf3 {[%clk 0:02:38]} 13. Bxf3 {[%clk 0:01:59]}  d5 {[%clk 0:02:39]} 14. Rae1 {[%clk 0:01:56]}  Qd6 {[%clk 0:02:38]} 15. Nb5 {[%clk 0:01:53]}  Qd7 {[%clk 0:02:38]} 16. Qf4 {[%clk 0:01:48]}  Rac8 {[%clk 0:02:35]} 17. c3 {[%clk 0:01:32]}  Ne7 {[%clk 0:02:29]} 18. Na3 {[%clk 0:01:28]}  Nf5 {[%clk 0:02:28]} 19. g4 {[%clk 0:01:27]}  Nd6 {[%clk 0:02:16]} 20. Bg2 {[%clk 0:01:25]}  Qd8 {[%clk 0:02:03]} 21. Nc2 {[%clk 0:01:06]}  Kg8 {[%clk 0:02:02]} 22. Nb4 {[%clk 0:01:05]}  Nc4 {[%clk 0:01:56]} 23. Re2 {[%clk 0:01:00]}  Nd7 {[%clk 0:01:55]} 24. g5 {[%clk 0:00:39]}  c5 {[%clk 0:01:50]} 25. Nd3 {[%clk 0:00:38]}  cxd4 {[%clk 0:01:49]} 26. cxd4 {[%clk 0:00:39]}  Re8 {[%clk 0:01:44]} 27. h4 {[%clk 0:00:36]}  Qc7 {[%clk 0:01:41]} 28. Qg4 {[%clk 0:00:35]}  Nd6 {[%clk 0:01:41]} 29. h5 {[%clk 0:00:35]}  Qc4 {[%clk 0:01:36]} 30. Nf4 {[%clk 0:00:10]}  Qxd4 {[%clk 0:01:31]} 31. hxg6 {[%clk 0:00:09]}  hxg6 {[%clk 0:01:31]} 32. Re3 {[%clk 0:00:08]}  Nf5 {[%clk 0:01:27]} 33. Rh3 {[%clk 0:00:07]}  Ne5 {[%clk 0:01:25]} 34. Qf3 {[%clk 0:00:01]}  Nxf3+ {[%clk 0:01:24]} 0-1


[Site "https://www.chess.com"]